{"text_format":"3","workbook":"xlsx","n_sheets":4,"sheets":["Anfang","Ausgaben","Einnahmen","Zusammenfassung_Gewinn–Verlust"],"not_rendered":{"charts":1},"read":"whole","date_system":"1900"}

{"sheet":"Anfang","index":0,"n_rows":8,"n_cols":2,"rows_kept":8}
[null,"ÜBER DIESE VORLAGE"]
[null,"Verwenden Sie die Arbeitsmappe \"Veranstaltungsbudget\", um die im Rahmen einer Veranstaltung angefallenen Ausgaben und Einnahmen nachzuverfolgen."]
[null,"Füllen Sie \"Name der Veranstaltung\" aus, und geben Sie Details in den Tabellen der Arbeitsblätter \"Ausgaben\" und \"Einnahmen\" ein."]
[null,"Die Gesamtausgaben und Gesamteinnahmen werden automatisch berechnet."]
[null,"Die Zusammenfassung von Gewinn und Verlust und das Diagramm werden im Arbeitsblatt \"Zusammenfassung_Gewinn–Verlust\" automatisch aktualisiert."]
[null,"Anmerkung: "]
[null,"Weitere Anweisungen wurden in Spalte A auf jedem Arbeitsblatt bereitgestellt. Diese Texte wurden absichtlich ausgeblendet. Um Text zu entfernen, wählen Sie Spalte A und dann ENTF aus. "]
[null,"Um mehr über Tabellen zu erfahren, drücken Sie die UMSCHALTTASTE und dann F10 innerhalb einer Tabelle, und wählen Sie die Option TABELLE und dann ALTERNATIVTEXT aus."]

{"sheet":"Ausgaben","index":1,"n_rows":32,"n_cols":8,"rows_kept":32,"merged":[[0,1,0,2],[0,3,0,4],[2,1,3,1]]}
["Geben Sie die geschätzten und tatsächlichen Ausgaben für die einzelnen Kategorien in den jeweiligen Tabellen dieses Arbeitsblatts und den Veranstaltungsnamen in Zelle D1 ein, um den Titel des Arbeitsblatts und der anderen Arbeitsblätter anzupassen. Der Untertitel dieses Arbeitsblatts steht in Zelle H1. Hilfreiche Anweisungen zur Verwendung dieses Arbeitsblatts stehen in Zellen in dieser Spalte. Die nächste Anweisung finden Sie in Zelle A3.","Veranstaltungsbudget für",null,"Name der Veranstaltung",{"$nulls":3},"AUSGABEN"]
[]
["Die Bezeichnung \"Gesamtausgaben\" steht in der Zelle rechts, die Bezeichnung \"Geschätzt\" in Zelle G3 und die Bezeichnung \"Tatsächlich\" in Zelle H3.","GESAMTAUSGABEN",{"$nulls":4},"Geschätzt","Tatsächlich"]
["Die geschätzten Gesamtausgaben in Zelle G4 und die tatsächlichen Gesamtausgaben in Zelle H4 werden automatisch berechnet. Die nächste Anweisung finden Sie in Zelle A6.",{"$nulls":5},{"$f":"SUM(C11,C19,C25,C32,G11,G19,G24)","v":{"v":882,"d":"882.00 €"}},{"$f":"SUM(D11,D19,D25,D32,H11,H19,H24)","v":{"v":302,"d":"302.00 €"}}]
[]
["Geben Sie die Ausgaben für den Veranstaltungsort in der Tabelle ab der Zelle rechts und die Ausgaben für Erfrischungen ab Zelle F6 ein. Die nächste Anweisung finden Sie in Zelle A13.","Veranstaltungsort","Geschätzt","Tatsächlich",null,"Erfrischungen","Geschätzt","Tatsächlich"]
[null,"Gebühren für Raum und Halle",{"v":500,"d":"500.00 €"},null,null,"Essen"]
[null,"Personal am Veranstaltungsort",{"$nulls":3},"Getränke",{"v":20,"d":"20.00 €"}]
[null,"Ausstattung",{"$nulls":3},"Tischwäsche",null,{"v":20,"d":"20.00 €"}]
[null,"Tische und Stühle",{"$nulls":3},"Personal und Trinkgelder"]
[null,"Ergebnis",{"$f":"SUBTOTAL(109,VeranstaltungsortAusgaben[Geschätzt])","v":{"v":500,"d":"500.00 €"}},{"$f":"SUBTOTAL(103,VeranstaltungsortAusgaben[Tatsächlich])","v":{"v":0,"d":"0.00 €"}},null,"Ergebnis",{"$f":"SUBTOTAL(109,ErfrischungenAusgaben[Geschätzt])","v":{"v":20,"d":"20.00 €"}},{"$f":"SUBTOTAL(103,ErfrischungenAusgaben[Tatsächlich])","v":{"v":1,"d":"1.00 €"}}]
[]
["Geben Sie die Ausgaben für Dekorationen in der Tabelle ab der Zelle rechts und die Ausgaben für Programme ab Zelle F13 ein. Die nächste Anweisung finden Sie in Zelle A21.","Dekorationen","Geschätzt","Tatsächlich",null,"Programm","Geschätzt","Tatsächlich"]
[null,"Blumen",{"v":200,"d":"200.00 €"},{"v":300,"d":"300.00 €"},null,"Künstler"]
[null,"Kerzen",{"$nulls":3},"Referenten",{"v":30,"d":"30.00 €"}]
[null,"Beleuchtung",{"$nulls":3},"Reise"]
[null,"Ballons",{"$nulls":3},"Hotel"]
[null,"Papierlieferungen",{"$nulls":3},"Sonstiges"]
[null,"Ergebnis",{"$f":"SUBTOTAL(109,DekorationenAusgaben[Geschätzt])","v":{"v":200,"d":"200.00 €"}},{"$f":"SUBTOTAL(109,DekorationenAusgaben[Tatsächlich])","v":{"v":300,"d":"300.00 €"}},null,"Ergebnis",{"$f":"SUBTOTAL(109,ProgrammAusgaben[Geschätzt])","v":{"v":30,"d":"30.00 €"}},{"$f":"SUBTOTAL(103,ProgrammAusgaben[Tatsächlich])","v":{"v":0,"d":"0.00 €"}}]
[]
["Geben Sie die Ausgaben für Öffentlichkeitsarbeit in der Tabelle ab der Zelle rechts und die Ausgaben für Preise ab Zelle F21 ein. Die nächste Anweisung finden Sie in Zelle A27.","Öffentlichkeitsarbeit","Geschätzt","Tatsächlich",null,"Preise","Geschätzt","Tatsächlich"]
[null,"Grafikarbeiten",{"$nulls":3},"Schleifen/Plaketten/Pokale"]
[null,"Kopieren/Drucken",{"v":20,"d":"20.00 €"},null,null,"Geschenke",{"v":100,"d":"100.00 €"}]
[null,"Porto",{"$nulls":3},"Summe",{"$f":"SUBTOTAL(109,PreiseAusgaben[Geschätzt])","v":{"v":100,"d":"100.00 €"}},{"$f":"SUBTOTAL(103,PreiseAusgaben[Tatsächlich])","v":{"v":0,"d":"0.00 €"}}]
[null,"Ergebnis",{"$f":"SUBTOTAL(109,ÖffentlichkeitsarbeitAusgaben[Geschätzt])","v":{"v":20,"d":"20.00 €"}},{"$f":"SUBTOTAL(103,ÖffentlichkeitsarbeitAusgaben[Tatsächlich])","v":{"v":0,"d":"0.00 €"}}]
[]
["Geben Sie die Ausgaben für Sonstiges in der Tabelle ab der Zelle rechts ein.","Sonstiges","Geschätzt","Tatsächlich"]
[null,"Telefon",null,{"v":13,"d":"13.00 €"}]
[null,"Beförderung",{"v":12,"d":"12.00 €"}]
[null,"Büromaterial"]
[null,"Faxdienste"]
[null,"Ergebnis",{"$f":"SUBTOTAL(109,SonstigeAusgaben[Geschätzt])","v":{"v":12,"d":"12.00 €"}},{"$f":"SUBTOTAL(103,SonstigeAusgaben[Tatsächlich])","v":{"v":1,"d":"1.00 €"}}]

{"sheet":"Einnahmen","index":2,"n_rows":29,"n_cols":7,"rows_kept":29,"merged":[[0,1,0,2],[2,1,3,1]]}
["Geben Sie die geschätzten und tatsächlichen Einnahmen für jede Kategorie in den jeweiligen Tabellen dieses Arbeitsblatts ein. Der Titel dieses Arbeitsblatts wird in den Zellen rechts automatisch aktualisiert. Der Untertitel steht in Zelle G1. Hilfreiche Anweisungen zur Verwendung dieses Arbeitsblatts stehen in Zellen in dieser Spalte. Die nächste Anweisung finden Sie in Zelle A3.",{"$f":"Ausgaben!B1","v":"Veranstaltungsbudget für"},null,{"$f":"Ausgaben!D1","v":"Name der Veranstaltung"},null,null,"EINNAHMEN"]
[]
["Die Bezeichnung \"Gesamteinnahmen\" steht in der Zelle rechts, die Bezeichnung \"Geschätzt\" in Zelle F3 und die Bezeichnung \"Tatsächlich\" in Zelle G3.","GESAMTEINNAHMEN",{"$nulls":3},"Geschätzt","Tatsächlich"]
["Die geschätzten Gesamteinnahmen werden in Zelle F4 und die tatsächlichen Gesamteinnahmen in Zelle G4 automatisch berechnet.",{"$nulls":4},{"$f":"SUM(Eintritte[[#Totals],[Geschätzte Einnahmen]],AnzeigenImProgramm[[#Totals],[Geschätzte Einnahmen]],AusstellerUndLieferanten[[#Totals],[Geschätzte Einnahmen]],VerkaufVonArtikeln[[#Totals],[Geschätzte Einnahmen]])","v":{"v":1936,"d":"1,936.00 €"}},{"$f":"SUM(Eintritte[[#Totals],[Tatsächliche Einnahmen]],AnzeigenImProgramm[[#Totals],[Tatsächliche Einnahmen]],AusstellerUndLieferanten[[#Totals],[Tatsächliche Einnahmen]],VerkaufVonArtikeln[[#Totals],[Tatsächliche Einnahmen]])","v":{"v":1831,"d":"1,831.00 €"}}]
["Die Bezeichnung \"Eintritte\" steht in der Zelle rechts.","EINTRITTE"]
["Geben Sie in der Tabelle ab der Zelle rechts die geschätzte und tatsächliche Anzahl der Eintritte mit den Ticketpreisen ein. Die geschätzten und tatsächlichen Einnahmen aus Eintritten werden automatisch berechnet. Die nächste Anweisung finden Sie in Zelle A11.","Geschätzte Anzahl","Tatsächliche Anzahl","Typ","Preis","Geschätzte Einnahmen","Tatsächliche Einnahmen"]
[null,300,278,"Erwachsene @",{"v":5,"d":"5.00 €"},{"$f":"B7*E7","v":{"v":1500,"d":"1,500.00 €"}},{"$f":"C7*E7","v":{"v":1390,"d":"1,390.00 €"}}]
[null,197,195,"Kinder @",{"v":2,"d":"2.00 €"},{"$f":"B8*E8","v":{"v":394,"d":"394.00 €"}},{"$f":"C8*E8","v":{"v":390,"d":"390.00 €"}}]
[null,42,51,"Andere @",{"v":1,"d":"1.00 €"},{"$f":"B9*E9","v":{"v":42,"d":"42.00 €"}},{"$f":"C9*E9","v":{"v":51,"d":"51.00 €"}}]
[null,"Ergebnis",{"$nulls":3},{"$f":"SUBTOTAL(109,Eintritte[Geschätzte Einnahmen])","v":{"v":1936,"d":"1,936.00 €"}},{"$f":"SUBTOTAL(109,Eintritte[Tatsächliche Einnahmen])","v":{"v":1831,"d":"1,831.00 €"}}]
["Die Bezeichnung \"Werbeanzeigen im Programm\" steht in der Zelle rechts.","ANZEIGEN IM PROGRAMM"]
["Geben Sie in der Tabelle ab der Zelle rechts die geschätzte und tatsächliche Anzahl der Werbeanzeigen im Programm und die Anzeigenpreise ein. Die geschätzten und tatsächlichen Einnahmen aus Werbeanzeigen werden automatisch berechnet. Die nächste Anweisung finden Sie in Zelle A17.","Geschätzte Anzahl","Tatsächliche Anzahl","Typ","Preis","Geschätzte Einnahmen","Tatsächliche Einnahmen"]
[null,12,null,"Deckblätter @",null,{"$f":"B13*E13","v":{"v":0,"d":"0.00 €"}},{"$f":"C13*E13","v":{"v":0,"d":"0.00 €"}}]
[null,null,158,"Halbe Seiten @",null,{"$f":"B14*E14","v":{"v":0,"d":"0.00 €"}},{"$f":"C14*E14","v":{"v":0,"d":"0.00 €"}}]
[null,4,null,"Viertelseiten @",null,{"$f":"B15*E15","v":{"v":0,"d":"0.00 €"}},{"$f":"C15*E15","v":{"v":0,"d":"0.00 €"}}]
[null,"Ergebnis",{"$nulls":3},{"$f":"SUBTOTAL(109,AnzeigenImProgramm[Geschätzte Einnahmen])","v":{"v":0,"d":"0.00 €"}},{"$f":"SUBTOTAL(109,AnzeigenImProgramm[Tatsächliche Einnahmen])","v":{"v":0,"d":"0.00 €"}}]
["Die Bezeichnung \"Aussteller oder Lieferanten\" steht in der Zelle rechts.","AUSSTELLER/LIEFERANTEN"]
["Geben Sie in der Tabelle ab der Zelle rechts die geschätzte und tatsächliche Anzahl von Ausstellern und Lieferanten sowie die Messestandpreise ein. Die geschätzten und tatsächlichen Einnahmen werden automatisch berechnet. Die nächste Anweisung finden Sie in Zelle A23.","Geschätzte Anzahl","Tatsächliche Anzahl","Typ","Preis","Geschätzte Einnahmen","Tatsächliche Einnahmen"]
[null,23,null,"Große Stände @",null,{"$f":"B19*E19","v":{"v":0,"d":"0.00 €"}},{"$f":"C19*E19","v":{"v":0,"d":"0.00 €"}}]
[null,354,null,"Mittelgroße Stände @",null,{"$f":"B20*E20","v":{"v":0,"d":"0.00 €"}},{"$f":"C20*E20","v":{"v":0,"d":"0.00 €"}}]
[null,56,null,"Kleine Stände @",null,{"$f":"B21*E21","v":{"v":0,"d":"0.00 €"}},{"$f":"C21*E21","v":{"v":0,"d":"0.00 €"}}]
[null,"Ergebnis",{"$nulls":3},{"$f":"SUBTOTAL(109,AusstellerUndLieferanten[Geschätzte Einnahmen])","v":{"v":0,"d":"0.00 €"}},{"$f":"SUBTOTAL(109,AusstellerUndLieferanten[Tatsächliche Einnahmen])","v":{"v":0,"d":"0.00 €"}}]
["Die Bezeichnung \"Verkauf von Artikeln\" steht in der Zelle rechts.","VERKAUF VON ARTIKELN"]
["Geben Sie in der Tabelle ab der Zelle rechts die geschätzte und tatsächliche Anzahl der verkauften Artikel und die Artikelpreise ein. Die geschätzten und tatsächlichen Einnahmen werden automatisch berechnet.","Geschätzte Anzahl","Tatsächliche Anzahl","Typ","Preis","Geschätzte Einnahmen","Tatsächliche Einnahmen"]
[{"$nulls":3},"Artikel @",null,{"$f":"B25*E25","v":{"v":0,"d":"0.00 €"}},{"$f":"C25*E25","v":{"v":0,"d":"0.00 €"}}]
[null,123,null,"Artikel @",null,{"$f":"B26*E26","v":{"v":0,"d":"0.00 €"}},{"$f":"C26*E26","v":{"v":0,"d":"0.00 €"}}]
[{"$nulls":3},"Artikel @",null,{"$f":"B27*E27","v":{"v":0,"d":"0.00 €"}},{"$f":"C27*E27","v":{"v":0,"d":"0.00 €"}}]
[null,13,null,"Artikel @",null,{"$f":"B28*E28","v":{"v":0,"d":"0.00 €"}},{"$f":"C28*E28","v":{"v":0,"d":"0.00 €"}}]
[null,"Ergebnis",{"$nulls":3},{"$f":"SUBTOTAL(109,VerkaufVonArtikeln[Geschätzte Einnahmen])","v":{"v":0,"d":"0.00 €"}},{"$f":"SUBTOTAL(109,VerkaufVonArtikeln[Tatsächliche Einnahmen])","v":{"v":0,"d":"0.00 €"}}]

{"sheet":"Zusammenfassung_Gewinn–Verlust","index":3,"n_rows":8,"n_cols":7,"rows_kept":8,"merged":[[0,1,0,2]]}
["Die Zusammenfassung von Gewinn und Verlust und das Diagramm mit den Gesamteinnahmen und -ausgaben werden in diesem Arbeitsblatt automatisch aktualisiert. Der Titel dieses Arbeitsblatts wird in den Zellen rechts automatisch aktualisiert. Der Untertitel steht in Zelle G1 und G2. Hilfreiche Anweisungen zur Verwendung dieses Arbeitsblatts stehen in Zellen in dieser Spalte. Die nächste Anweisung finden Sie in Zelle A3.",{"$f":"Ausgaben!B1","v":"Veranstaltungsbudget für"},null,{"$f":"Ausgaben!D1","v":"Name der Veranstaltung"},null,null,"GEWINN "]
[{"$nulls":6},"Zusammenfassung Verlust"]
["Ein Balkendiagramm, in dem die geschätzten Einnahmen und Ausgaben mit den tatsächlichen Einnahmen und Ausgaben verglichen werden, befindet sich in Zelle E3.",{"$nulls":3},"Ein Balkendiagramm, in dem die geschätzten Einnahmen und Ausgaben mit den tatsächlichen Einnahmen und Ausgaben verglichen werden, befindet sich in dieser Zelle."]
["Die Tabelle \"Zusammenfassung\", die in der Zelle rechts beginnt, wird automatisch aktualisiert. Die nächste Anweisung finden Sie in Zelle A8."," Summe","Geschätzt","Tatsächlich"]
[null,"Gesamteinnahmen",{"$f":"Einnahmen!F10","v":{"v":1936,"d":"1,936.00 €"}},{"$f":"Einnahmen!F4","v":{"v":1936,"d":"1,936.00 €"}}]
[null,"Gesamtausgaben",{"$f":"Ausgaben!G4","v":{"v":882,"d":"882.00 €"}},{"$f":"Ausgaben!H4","v":{"v":302,"d":"302.00 €"}}]
[]
["Der geschätzte Gesamtgewinn oder -verlust wird in Zelle C8 automatisch berechnet und der tatsächliche Gesamtgewinn oder -verlust in Zelle D8.","Gesamtgewinn\n(oder Verlust)",{"$f":"C5-C6","v":{"v":1054,"d":"1,054.00 €"}},{"$f":"D5-D6","v":{"v":1634,"d":"1,634.00 €"}}]